[Event "European-ch Seniors 2018"]
[Site "Drammen"]
[Date "2018.08.05"]
[Round "2"]
[White "Bogdanov, Valentin"]
[Black "Hedin, Gunnar"]
[Result "1-0"]
[ECO "A04"]
[WhiteElo "2356"]
[BlackElo "2179"]
[Annotator "NA"]
[PlyCount "107"]
[EventDate "2018.08.04"]
[EventType "swiss"]
[EventCountry "NOR"]
[SourceTitle "playchess.com"]
[Source "ChessBase"]
[SourceQuality "1"]
[TimeControl "40/5400+30:1800+30"]

1. Nf3 {[%emt 0:00:00]} e6 {[%emt 0:01:59]} 2. g3 {[%emt 0:03:18]} f5 {[%emt 0:04:38]} 3. d3 {[%emt 0:02:16]} Nf6 {[%emt 0:01:18]} 4. Nc3 {[%emt 0:01:34]} d5 {[%emt 0:00:58]} 5. Bf4 {[%emt 0:03:03]} Bb4 {[%emt 0:03:28]} 6. a3 {[%emt 0:01:04]} Bxc3+ {[%emt 0:01:55]} 7. bxc3 {[%emt 0:00:02]} Nc6 {[%emt 0:02:02]} 8. Bg2 $11 {[%emt 0:00:53]} O-O {[%emt 0:01:29]} 9. O-O {[%emt 0:01:51]} Qe7 {[%emt 0:01:30]} 10. Ne5 {[%emt 0:03:35]} Nxe5 {[%emt 0:05:26]} 11. Bxe5 {[%emt 0:00:11]} c6 {[%emt 0:00:18]} 12. Qd2 {[%emt 0:07:55]} Ng4 {[%emt 0:05:05]} 13. f4 {[%emt 0:01:05]} Bd7 {[%emt 0:07:30]} 14. e4 {[%emt 0:12:21]} Nxe5 {[%emt 0:00:45]} 15. fxe5 {[%emt 0:00:02]} fxe4 {[%emt 0:10:16]} 16. Rxf8+ {[%emt 0:00:38]} Rxf8 {[%emt 0:00:10]} 17. dxe4 {[%emt 0:00:09]} Be8 {[%emt 0:16:01]} 18. a4 {[%emt 0:04:10]} Bg6 {[%emt 0:01:04]} 19. Re1 {[%emt 0:04:21]} Qc5+ {[%emt 0:04:03]} 20. Qd4 {[%emt 0:00:29]} Qxd4+ {[%emt 0:00:18]} 21. cxd4 {[%emt 0:00:02]} Bxe4 {[%emt 0:00:27]} 22. Bxe4 {[%emt 0:00:47]} dxe4 {[%emt 0:00:02]} 23. Re3 {[%emt 0:05:11]} b5 {[%emt 0:08:15]} 24. a5 {[%emt 0:02:52]} Kf7 {[%emt 0:06:24]} 25. Rxe4 {[%emt 0:02:52]} Rc8 {[%emt 0:00:29]} 26. Re3 {[%emt 0:07:56]} c5 {[%emt 0:00:16]} 27. Rc3 {[%emt 0:00:38]} c4 {[%emt 0:00:06]} 28. Kf2 {[%emt 0:02:28]} Ke7 {[%emt 0:00:32]} 29. Ra3 {[%emt 0:04:43]} b4 {[%emt 0:00:41]} 30. Ra1 {[%emt 0:00:15]} b3 {[%emt 0:00:42]} 31. Rb1 {[%emt 0:02:34]} Rb8 {[%emt 0:00:42]} 32. Ke2 {[%emt 0:01:22]} Kd7 {[%emt 0:08:25]} 33. cxb3 {[%emt 0:04:41]} Rxb3 {[%emt 0:00:17]} 34. Rc1 {[%emt 0:00:18]} Rb4 {[%emt 0:00:22]} 35. Ke3 {[%emt 0:01:03]} Kc6 {[%emt 0:01:12]} 36. Ke4 {[%emt 0:00:32]} Kb5 {[%emt 0:00:39]} 37. d5 {[%emt 0:02:32]} c3+ {[%emt 0:04:18]} 38. Kd3 {[%emt 0:00:12]} exd5 {[%emt 0:00:56]} 39. Rxc3 {[%emt 0:00:08]} g5 {[%emt 0:01:56]} 40. Rc7 {[%emt 0:00:00]} Kxa5 41. Rc5+ {[%emt 0:08:54]} Kb6 {[%emt 0:04:42]} 42. Rxd5 {[%emt 0:00:26]} Kc6 {[%emt 0:04:47]} 43. Rd6+ {[%emt 0:03:19]} Kc5 {[%emt 0:04:04]} 44. Rd8 {[%emt 0:01:55]} Rb7 {[%emt 0:08:37]} 45. Ke4 {[%emt 0:00:46]} a5 {[%emt 0:00:28]} 46. e6 {[%emt 0:02:19]} Rb1 {[%emt 0:06:46]} 47. Kf5 {[%emt 0:01:52]} Rf1+ 48. Kxg5 Re1 {[%emt 0:02:49]} 49. Kf6 {[%emt 0:00:37]} Rf1+ 50. Kg7 Re1 {[%emt 0:00:51]} 51. Kf7 {[%emt 0:00:43]} Rf1+ {[%emt 0:00:07]} 52. Ke8 {[%emt 0:00:19]} a4 {[%emt 0:00:21]} 53. e7 {[%emt 0:00:30]} a3 {[%emt 0:01:19]} 54. Rd2 {[%emt 0:00:13]} 1-0

[Event "European-ch Seniors 2018"]
[Site "Drammen"]
[Date "2018.08.05"]
[Round "2"]
[White "Elseth, Roar"]
[Black "Edvardsen, Ragnar"]
[Result "1/2-1/2"]
[ECO "A39"]
[WhiteElo "2311"]
[BlackElo "1969"]
[Annotator "NA"]
[PlyCount "116"]
[EventDate "2018.08.04"]
[EventType "swiss"]
[EventCountry "NOR"]
[SourceTitle "playchess.com"]
[Source "ChessBase"]
[SourceQuality "1"]
[TimeControl "40/5400+30:1800+30"]

1. Nf3 {[%emt 0:00:00]} Nf6 {[%emt 0:00:02]} 2. c4 {[%emt 0:00:06]} g6 {[%emt 0:00:57]} 3. g3 {[%emt 0:01:41]} Bg7 {[%emt 0:00:30]} 4. Bg2 {[%emt 0:00:09]} O-O {[%emt 0:00:24]} 5. O-O {[%emt 0:00:06]} c5 {[%emt 0:02:51]} 6. Nc3 {[%emt 0:06:03]} Nc6 {[%emt 0:03:40]} 7. d4 {[%emt 0:00:23]} cxd4 {[%emt 0:00:17]} 8. Nxd4 {[%emt 0:00:08]} Nxd4 {[%emt 0:04:57]} 9. Qxd4 $11 {[%emt 0:01:37]} d6 {[%emt 0:00:20]} 10. Qd3 {[%emt 0:11:16]} Nd7 {[%emt 0:03:51]} 11. b3 {[%emt 0:01:24]} Nc5 {[%emt 0:01:49]} 12. Qd2 {[%emt 0:03:38]} Rb8 {[%emt 0:10:11]} 13. Bb2 {[%emt 0:05:04]} a6 {[%emt 0:02:44]} 14. Rfd1 {[%emt 0:09:55]} Be6 {[%emt 0:10:31]} 15. Rac1 {[%emt 0:05:57]} Qd7 {[%emt 0:14:35]} 16. Qc2 {[%emt 0:11:00]} Bh3 {[%emt 0:06:17]} 17. Bh1 {[%emt 0:05:22]} Ne6 {[%emt 0:09:36]} 18. Nd5 {[%emt 0:02:09]} Bxb2 {[%emt 0:03:19]} 19. Qxb2 {[%emt 0:00:10]} b6 {[%emt 0:05:09]} 20. Qf6 {[%emt 0:08:40]} Rfe8 {[%emt 0:01:31]} 21. Qh4 {[%emt 0:00:06]} Ng7 {[%emt 0:03:35]} 22. Qh6 {[%emt 0:09:19]} Be6 {[%emt 0:01:56]} 23. Nb4 {[%emt 0:03:30]} Rbc8 {[%emt 0:01:13]} 24. Nxa6 {[%emt 0:00:45]} Qa7 {[%emt 0:01:25]} 25. Nb4 {[%emt 0:00:09]} Qa3 {[%emt 0:02:05]} 26. Qd2 {[%emt 0:00:17]} Rc7 {[%emt 0:02:19]} 27. Ra1 {[%emt 0:03:32]} Rec8 {[%emt 0:01:04]} 28. Nc2 {[%emt 0:00:21]} Qc5 {[%emt 0:00:58]} 29. a4 {[%emt 0:00:35]} h5 {[%emt 0:01:01]} 30. Nd4 {[%emt 0:03:23]} Nf5 {[%emt 0:01:04]} 31. Nxf5 Qxf5 {[%emt 0:01:00]} 32. Qe3 {[%emt 0:02:02]} Rc5 {[%emt 0:01:12]} 33. Qd4 {[%emt 0:02:40]} Qe5 {[%emt 0:00:38]} 34. e3 {[%emt 0:00:19]} Kg7 {[%emt 0:01:26]} 35. f4 {[%emt 0:00:15]} Qf6 {[%emt 0:01:02]} 36. Bf3 {[%emt 0:00:29]} Bg4 {[%emt 0:01:12]} 37. Qxf6+ {[%emt 0:01:49]} Kxf6 {[%emt 0:00:05]} 38. Kg2 {[%emt 0:00:14]} Bxf3+ {[%emt 0:00:33]} 39. Kxf3 {[%emt 0:00:06]} g5 {[%emt 0:00:06]} 40. e4 {[%emt 0:00:00]} Rg8 {[%emt 0:00:00]} 41. Rd4 {[%emt 0:01:57]} gxf4 {[%emt 0:05:00]} 42. gxf4 {[%emt 0:00:15]} Rg4 {[%emt 0:01:18]} 43. b4 {[%emt 0:02:07]} Rc8 {[%emt 0:00:34]} 44. h3 {[%emt 0:20:46]} Rg7 {[%emt 0:03:16]} 45. e5+ {[%emt 0:03:01]} dxe5 {[%emt 0:00:50]} 46. fxe5+ {[%emt 0:00:11]} Ke6 {[%emt 0:00:46]} 47. a5 {[%emt 0:02:12]} bxa5 {[%emt 0:01:19]} 48. Rxa5 {[%emt 0:00:21]} Rg1 {[%emt 0:09:06]} 49. Ra6+ {[%emt 0:04:44]} Kf5 {[%emt 0:00:21]} 50. Rf4+ {[%emt 0:01:28]} Kxe5 {[%emt 0:00:57]} 51. Re4+ {[%emt 0:00:43]} Kf5 {[%emt 0:00:13]} 52. Rf4+ {[%emt 0:00:27]} Ke5 {[%emt 0:00:18]} 53. Rh4 {[%emt 0:00:27]} Rcg8 {[%emt 0:06:16]} 54. Re4+ {[%emt 0:00:37]} Kf5 {[%emt 0:00:24]} 55. Rf4+ {[%emt 0:00:31]} Ke5 {[%emt 0:00:39]} 56. Re4+ {[%emt 0:01:16]} Kf5 {[%emt 0:00:18]} 57. Rf4+ {[%emt 0:01:20]} Ke5 {[%emt 0:00:11]} 58. Re4+ {[%emt 0:01:11]} Kf5 {[%emt 0:00:20]} 1/2-1/2

[Event "European-ch Seniors 2018"]
[Site "Drammen"]
[Date "2018.08.05"]
[Round "2"]
[White "Gaprindashvili, Nona"]
[Black "Moe, Mogens"]
[Result "1/2-1/2"]
[ECO "D85"]
[WhiteElo "2305"]
[BlackElo "2150"]
[Annotator "NA"]
[PlyCount "84"]
[EventDate "2018.08.04"]
[EventType "swiss"]
[EventCountry "NOR"]
[SourceTitle "playchess.com"]
[Source "ChessBase"]
[SourceQuality "1"]
[TimeControl "40/5400+30:1800+30"]

1. d4 {[%emt 0:00:00]} Nf6 {[%emt 0:00:00]} 2. c4 {[%emt 0:00:00]} g6 {[%emt 0:00:00]} 3. Nc3 {[%emt 0:00:00]} d5 {[%emt 0:00:02]} 4. cxd5 {[%emt 0:00:00]} Nxd5 {[%emt 0:00:10]} 5. e4 {[%emt 0:00:00]} Nxc3 {[%emt 0:00:10]} 6. bxc3 {[%emt 0:00:00]} Bg7 {[%emt 0:00:19]} 7. Be3 {[%emt 0:00:00]} c5 {[%emt 0:01:34]} 8. Rc1 {[%emt 0:00:00]} Qa5 {[%emt 0:02:38]} 9. Qd2 {[%emt 0:00:00]} O-O {[%emt 0:00:21]} 10. d5 {[%emt 0:01:23]} Rd8 {[%emt 0:00:29]} 11. c4 {[%emt 0:00:18]} Qa3 {[%emt 0:06:49]} 12. Qc2 {[%emt 0:19:15]} f5 {[%emt 0:06:33]} 13. exf5 {[%emt 0:02:54]} Bxf5 {[%emt 0:00:10]} 14. Qb3 {[%emt 0:00:05]} Bb2 {[%emt 0:04:43]} 15. Rd1 {[%emt 0:07:27]} Qxb3 {[%emt 0:03:06]} 16. axb3 {[%emt 0:00:02]} Bc2 {[%emt 0:01:03]} 17. Rd2 {[%emt 0:03:52]} Bc3 {[%emt 0:00:48]} 18. Ne2 {[%emt 0:00:58]} Bxd2+ {[%emt 0:01:48]} 19. Kxd2 {[%emt 0:00:09]} Bxb3 {[%emt 0:01:05]} 20. Kc3 {[%emt 0:00:02]} Ba4 {[%emt 0:00:34]} 21. Bxc5 {[%emt 0:00:04]} Kf7 {[%emt 0:00:51]} 22. Nd4 {[%emt 0:00:35]} Bd7 {[%emt 0:09:30]} 23. Bd3 {[%emt 0:00:48]} Na6 {[%emt 0:00:28]} 24. Ba3 {[%emt 0:00:11]} Rac8 {[%emt 0:05:00]} 25. Nf3 {[%emt 0:05:37]} Kf6 {[%emt 0:15:19]} 26. Kd2 {[%emt 0:15:57]} Bf5 {[%emt 0:02:57]} 27. Bb2+ {[%emt 0:02:09]} Kf7 {[%emt 0:00:18]} 28. Ng5+ {[%emt 0:00:31]} Kg8 {[%emt 0:01:11]} 29. Ba3 {[%emt 0:11:56]} Rd7 {[%emt 0:01:28]} 30. Be2 {[%emt 0:02:03]} Nc5 {[%emt 0:11:24]} 31. g4 {[%emt 0:10:45]} h6 {[%emt 0:00:35]} 32. gxf5 {[%emt 0:00:37]} hxg5 {[%emt 0:00:08]} 33. fxg6 {[%emt 0:01:30]} Rd6 {[%emt 0:01:48]} 34. Bg4 {[%emt 0:07:59]} Rc7 {[%emt 0:00:11]} 35. Be6+ {[%emt 0:02:19]} Kg7 {[%emt 0:03:21]} 36. Bf7 {[%emt 0:02:24]} Ne4+ {[%emt 0:03:23]} 37. Ke3 {[%emt 0:00:01]} Rxc4 {[%emt 0:00:40]} 38. Bxd6 {[%emt 0:02:49]} Nxd6 {[%emt 0:00:09]} 39. Rg1 {[%emt 0:02:26]} Nxf7 {[%emt 0:04:07]} 40. gxf7 {[%emt 0:00:00]} Kxf7 {[%emt 0:00:00]} 41. Rxg5 {[%emt 0:00:17]} Rh4 {[%emt 0:00:51]} 42. Rg2 {[%emt 0:00:44]} a5 {[%emt 0:11:29] Ke4} 1/2-1/2

[Event "European-ch Seniors 2018"]
[Site "Drammen"]
[Date "2018.08.05"]
[Round "2"]
[White "Werner, Clemens"]
[Black "Schouten, Nico"]
[Result "1/2-1/2"]
[ECO "C50"]
[WhiteElo "2258"]
[BlackElo "2126"]
[Annotator "NA"]
[PlyCount "50"]
[EventDate "2018.08.04"]
[EventType "swiss"]
[EventCountry "NOR"]
[SourceTitle "playchess.com"]
[Source "ChessBase"]
[SourceQuality "1"]
[TimeControl "40/5400+30:1800+30"]

1. e4 {[%emt 0:02:23]} e5 {[%emt 0:00:00]} 2. Nf3 {[%emt 0:00:15]} Nc6 {[%emt 0:00:00]} 3. Bc4 {[%emt 0:00:47]} Be7 {[%emt 0:00:00]} 4. d3 {[%emt 0:05:32]} Nf6 {[%emt 0:00:00]} 5. O-O {[%emt 0:00:06]} O-O {[%emt 0:00:04]} 6. Re1 {[%emt 0:00:08]} d6 {[%emt 0:00:13]} 7. c3 {[%emt 0:02:27]} a6 {[%emt 0:05:53]} 8. Bb3 {[%emt 0:01:55]} b5 {[%emt 0:05:58]} 9. Nbd2 {[%emt 0:00:41] LiveBook: 8 Games} Bb7 $14 {[%emt 0:01:35]} 10. d4 {[%emt 0:09:37]} Nd7 {[%emt 0:09:31]} 11. Nf1 {[%emt 0:01:26]} Bf6 {[%emt 0:00:36]} 12. Ne3 {[%emt 0:06:46]} Ne7 {[%emt 0:08:54]} 13. Ng4 {[%emt 0:01:03]} Ng6 {[%emt 0:01:57]} 14. dxe5 {[%emt 0:00:30]} Ngxe5 {[%emt 0:00:30]} 15. Nfxe5 {[%emt 0:00:30]} Nxe5 {[%emt 0:00:30]} 16. Nxf6+ {[%emt 0:00:30]} Qxf6 {[%emt 0:00:30]} 17. f4 {[%emt 0:31:47]} Ng6 {[%emt 0:16:57]} 18. g3 {[%emt 0:02:03]} Rfe8 {[%emt 0:01:48]} 19. Bc2 {[%emt 0:00:58]} Rad8 {[%emt 0:01:00]} 20. Qd4 {[%emt 0:02:18]} Qe7 {[%emt 0:02:06]} 21. Bd2 {[%emt 0:01:01]} Nf8 {[%emt 0:02:45]} 22. Qf2 {[%emt 0:02:58]} Nd7 {[%emt 0:00:25]} 23. Re2 {[%emt 0:02:35]} Nf6 {[%emt 0:00:50]} 24. Rae1 {[%emt 0:00:49]} Qd7 {[%emt 0:00:28]} 25. f5 {[%emt 0:02:43]} h6 {[%emt 0:00:30]} 1/2-1/2

[Event "European-ch Seniors 2018"]
[Site "Drammen"]
[Date "2018.08.05"]
[Round "2"]
[White "Blechzin, Igor"]
[Black "Sielicki, Tomasz"]
[Result "1/2-1/2"]
[ECO "E06"]
[WhiteElo "2250"]
[BlackElo "1956"]
[Annotator "NA"]
[PlyCount "92"]
[EventDate "2018.08.04"]
[EventType "swiss"]
[EventCountry "NOR"]
[SourceTitle "playchess.com"]
[Source "ChessBase"]
[SourceQuality "1"]
[TimeControl "40/5400+30:1800+30"]

1. d4 {[%emt 0:00:00]} Nf6 {[%emt 0:00:00]} 2. c4 {[%emt 0:00:00]} e6 {[%emt 0:00:02]} 3. Nf3 {[%emt 0:00:00]} d5 {[%emt 0:00:26]} 4. g3 {[%emt 0:00:04]} Be7 {[%emt 0:00:30]} 5. Bg2 {[%emt 0:00:12]} O-O {[%emt 0:00:18]} 6. Qc2 {[%emt 0:00:32]} dxc4 {[%emt 0:05:44]} 7. Qxc4 {[%emt 0:00:09]} a6 {[%emt 0:05:24]} 8. Qc2 {[%emt 0:03:36]} c5 {[%emt 0:04:40]} 9. dxc5 {[%emt 0:00:54]} Qa5+ {[%emt 0:04:08]} 10. Nc3 $14 {[%emt 0:01:11] LiveBook: 6 Games} Nc6 {[%emt 0:09:40]} 11. O-O {[%emt 0:05:53]} Bd7 {[%emt 0:13:14]} 12. Be3 {[%emt 0:25:11]} Bxc5 {[%emt 0:02:31]} 13. Bxc5 {[%emt 0:01:58]} Qxc5 {[%emt 0:00:11]} 14. Rac1 {[%emt 0:00:05]} Rac8 {[%emt 0:03:09]} 15. a3 {[%emt 0:04:36]} Ne7 {[%emt 0:19:47]} 16. Rfd1 {[%emt 0:08:53]} Bc6 {[%emt 0:01:59]} 17. Nd5 {[%emt 0:01:29]} Qxd5 {[%emt 0:03:27]} 18. Rxd5 {[%emt 0:00:18]} Bxd5 {[%emt 0:00:44]} 19. Qd2 {[%emt 0:01:47]} Ne4 {[%emt 0:02:10]} 20. Qe1 {[%emt 0:00:28]} h6 {[%emt 0:05:11]} 21. Rxc8 {[%emt 0:02:25]} Rxc8 {[%emt 0:00:04]} 22. Nd2 {[%emt 0:01:40]} Nxd2 {[%emt 0:03:11]} 23. Qxd2 {[%emt 0:01:58]} f5 {[%emt 0:01:52]} 24. Bxd5 {[%emt 0:02:12]} Nxd5 {[%emt 0:00:08]} 25. Kg2 {[%emt 0:01:32]} Rc7 {[%emt 0:02:49]} 26. Qd3 {[%emt 0:01:12]} Rd7 {[%emt 0:01:04]} 27. Qb3 {[%emt 0:00:47]} Kf7 {[%emt 0:00:33]} 28. Qa4 {[%emt 0:01:16]} Re7 {[%emt 0:00:23]} 29. e4 {[%emt 0:03:34]} fxe4 {[%emt 0:01:11]} 30. Qxe4 {[%emt 0:00:09]} Nf6 {[%emt 0:01:01]} 31. Qc4 {[%emt 0:01:12]} Nd5 {[%emt 0:00:58]} 32. Qc8 {[%emt 0:01:11]} Nf6 {[%emt 0:00:32]} 33. a4 {[%emt 0:04:16]} Nd5 {[%emt 0:00:52]} 34. Qb8 {[%emt 0:01:53]} e5 {[%emt 0:02:32]} 35. Qc8 {[%emt 0:00:40]} Nf6 {[%emt 0:00:52]} 36. h4 {[%emt 0:02:03]} e4 {[%emt 0:00:42]} 37. g4 {[%emt 0:00:34]} h5 {[%emt 0:02:48]} 38. g5 {[%emt 0:00:53]} Ng4 {[%emt 0:00:22]} 39. Qh8 {[%emt 0:00:54]} Kg6 {[%emt 0:01:51]} 40. Qd8 {[%emt 0:00:00]} Kf7 {[%emt 0:00:00]} 41. Qh8 {[%emt 0:07:55]} Kg6 {[%emt 0:13:35]} 42. Qf8 {[%emt 0:00:08]} Re5 {[%emt 0:00:07]} 43. Qd8 {[%emt 0:13:51]} Kf7 {[%emt 0:03:40]} 44. Qd7+ {[%emt 0:03:45]} Re7 {[%emt 0:00:31]} 45. Qd5+ {[%emt 0:01:41]} Kf8 {[%emt 0:06:05]} 46. Qd8+ {[%emt 0:02:15]} Kf7 {[%emt 0:00:36]} 1/2-1/2

[Event "European-ch Seniors 2018"]
[Site "Drammen"]
[Date "2018.08.05"]
[Round "2"]
[White "Ackermann, Hans Werner"]
[Black "Ashby, Anthony"]
[Result "1-0"]
[ECO "A06"]
[WhiteElo "2246"]
[BlackElo "2055"]
[Annotator "NA"]
[PlyCount "117"]
[EventDate "2018.08.04"]
[EventType "swiss"]
[EventCountry "NOR"]
[SourceTitle "playchess.com"]
[Source "ChessBase"]
[SourceQuality "1"]
[TimeControl "40/5400+30:1800+30"]

1. Nf3 {[%emt 0:00:00]} d5 {[%emt 0:00:28]} 2. b3 {[%emt 0:00:01]} Nf6 {[%emt 0:01:29]} 3. Bb2 {[%emt 0:00:13]} e6 {[%emt 0:01:19]} 4. e3 {[%emt 0:02:12]} Bd6 {[%emt 0:00:47] LiveBook: 67 Games} 5. c4 {[%emt 0:02:13]} O-O {[%emt 0:03:13]} 6. Qc2 {[%emt 0:05:53]} Nbd7 $11 {[%emt 0:07:15]} 7. Nc3 {[%emt 0:07:15]} c6 {[%emt 0:02:55]} 8. d4 {[%emt 0:04:48]} Re8 {[%emt 0:05:09]} 9. Be2 {[%emt 0:01:46]} e5 {[%emt 0:16:48]} 10. cxd5 {[%emt 0:05:14]} Nxd5 {[%emt 0:00:37]} 11. a3 {[%emt 0:08:39]} exd4 {[%emt 0:07:13]} 12. Nxd5 {[%emt 0:02:45]} cxd5 {[%emt 0:00:17]} 13. Nxd4 {[%emt 0:00:29]} Nf6 {[%emt 0:02:11]} 14. Nb5 {[%emt 0:15:08]} Be5 {[%emt 0:05:48]} 15. Bxe5 {[%emt 0:16:51]} Rxe5 {[%emt 0:00:16]} 16. Qc7 {[%emt 0:07:59]} Qxc7 {[%emt 0:03:55]} 17. Nxc7 {[%emt 0:00:04]} Rb8 {[%emt 0:00:08]} 18. Nb5 {[%emt 0:00:11]} Bd7 {[%emt 0:03:43]} 19. Nd4 {[%emt 0:02:01]} Rc8 {[%emt 0:04:27]} 20. O-O {[%emt 0:00:44]} Ree8 {[%emt 0:00:44]} 21. Rfc1 {[%emt 0:00:21]} a6 {[%emt 0:00:16]} 22. Rxc8 {[%emt 0:02:12]} Rxc8 {[%emt 0:00:08]} 23. f3 {[%emt 0:00:13]} Kf8 {[%emt 0:00:56]} 24. Kf2 {[%emt 0:00:37]} Ke7 {[%emt 0:02:52]} 25. Bd3 {[%emt 0:01:17]} g6 {[%emt 0:00:22]} 26. Ke2 {[%emt 0:00:08]} Be6 {[%emt 0:02:15]} 27. Kd2 {[%emt 0:00:43]} Nd7 {[%emt 0:02:03]} 28. Rc1 {[%emt 0:01:38]} Rxc1 {[%emt 0:00:22]} 29. Kxc1 {[%emt 0:00:05]} Ne5 {[%emt 0:00:37]} 30. Kd2 {[%emt 0:00:27]} Kd6 {[%emt 0:00:51]} 31. Kc3 {[%emt 0:00:23]} Bd7 {[%emt 0:01:35]} 32. h3 {[%emt 0:01:51]} Bc8 {[%emt 0:06:50]} 33. f4 {[%emt 0:04:14]} Nd7 {[%emt 0:03:12]} 34. Nf3 {[%emt 0:04:17]} f6 {[%emt 0:00:37]} 35. Nd4 {[%emt 0:00:38]} Nc5 {[%emt 0:00:15]} 36. Bc2 {[%emt 0:00:09]} Bd7 {[%emt 0:00:42]} 37. b4 {[%emt 0:01:41]} Na4+ {[%emt 0:01:23]} 38. Bxa4 {[%emt 0:00:13]} Bxa4 {[%emt 0:00:05]} 39. Nf3 {[%emt 0:00:25]} Bb5 {[%emt 0:00:18]} 40. Nd2 {[%emt 0:00:00]} Be2 {[%emt 0:00:00]} 41. Kd4 {[%emt 0:00:20]} b6 {[%emt 0:04:55]} 42. g3 {[%emt 0:09:43]} Bb5 {[%emt 0:01:35]} 43. h4 {[%emt 0:08:01]} Be2 {[%emt 0:04:45]} 44. e4 {[%emt 0:02:44]} dxe4 {[%emt 0:00:29]} 45. Nxe4+ {[%emt 0:00:03]} Ke6 {[%emt 0:00:26]} 46. Nc3 {[%emt 0:00:04]} Bf1 {[%emt 0:05:23]} 47. Nd5 {[%emt 0:00:40]} b5 {[%emt 0:00:33]} 48. Nc7+ {[%emt 0:00:23]} Kf5 {[%emt 0:00:05]} 49. Ke3 {[%emt 0:00:08]} g5 {[%emt 0:00:14]} 50. hxg5 {[%emt 0:02:10]} fxg5 {[%emt 0:00:07]} 51. fxg5 {[%emt 0:00:04]} Kxg5 {[%emt 0:00:11]} 52. Nxa6 {[%emt 0:00:07]} h5 {[%emt 0:00:20]} 53. Nc5 {[%emt 0:00:38]} Kg4 {[%emt 0:02:39]} 54. Kf2 {[%emt 0:02:26]} Bc4 {[%emt 0:00:16]} 55. Ne4 {[%emt 0:00:11]} Bd3 {[%emt 0:02:51]} 56. Nd6 {[%emt 0:00:33]} h4 {[%emt 0:00:25]} 57. gxh4 {[%emt 0:00:15]} Kxh4 {[%emt 0:00:05]} 58. Ke3 {[%emt 0:00:06]} Bf1 {[%emt 0:00:31]} 59. Kd4 {[%emt 0:00:04]} 1-0

[Event "European-ch Seniors 2018"]
[Site "Drammen"]
[Date "2018.08.05"]
[Round "2"]
[White "Furman, Boris"]
[Black "Sorokina, Tamara"]
[Result "1-0"]
[ECO "A61"]
[WhiteElo "2242"]
[BlackElo "2050"]
[Annotator "NA"]
[PlyCount "81"]
[EventDate "2018.08.04"]
[EventType "swiss"]
[EventCountry "NOR"]
[SourceTitle "playchess.com"]
[Source "ChessBase"]
[SourceQuality "1"]
[TimeControl "40/5400+30:1800+30"]

1. d4 {[%emt 0:00:00]} Nf6 {[%emt 0:00:00]} 2. c4 {[%emt 0:00:00]} e6 {[%emt 0:00:00]} 3. Nc3 {[%emt 0:00:00]} c5 {[%emt 0:00:00]} 4. d5 {[%emt 0:00:14]} exd5 {[%emt 0:00:00]} 5. cxd5 {[%emt 0:00:08]} d6 {[%emt 0:00:00]} 6. Nf3 {[%emt 0:00:18]} g6 {[%emt 0:00:05]} 7. Bg5 {[%emt 0:00:18]} Bg7 {[%emt 0:00:12]} 8. e3 {[%emt 0:00:15]} a6 {[%emt 0:00:08]} 9. a4 {[%emt 0:00:15]} O-O {[%emt 0:00:05]} 10. Be2 {[%emt 0:00:32]} Re8 {[%emt 0:00:15]} 11. O-O {[%emt 0:00:41]} Qc7 {[%emt 0:01:23]} 12. Nd2 {[%emt 0:05:04]} Nbd7 {[%emt 0:01:05]} 13. h3 {[%emt 0:02:25]} Rb8 $16 {[%emt 0:01:48]} 14. Kh1 {[%emt 0:16:05]} h6 {[%emt 0:05:14]} 15. Bh4 {[%emt 0:00:29]} Nh7 {[%emt 0:01:07]} 16. e4 {[%emt 0:03:56]} g5 {[%emt 0:03:29]} 17. Bg3 {[%emt 0:00:29]} Ne5 {[%emt 0:00:07]} 18. f4 {[%emt 0:05:28]} gxf4 {[%emt 0:00:07]} 19. Bxf4 {[%emt 0:00:12]} Nf8 {[%emt 0:00:07]} 20. Bxe5 {[%emt 0:04:21]} Bxe5 {[%emt 0:02:45]} 21. Nc4 {[%emt 0:04:31]} Bg7 {[%emt 0:02:38]} 22. a5 {[%emt 0:01:24]} Ng6 {[%emt 0:00:28]} 23. Bh5 {[%emt 0:02:06]} Qe7 {[%emt 0:01:09]} 24. Qf3 {[%emt 0:00:45]} Rd8 {[%emt 0:07:52]} 25. Qg3 {[%emt 0:05:08]} Be5 {[%emt 0:00:47]} 26. Qe3 {[%emt 0:02:08]} Bg7 {[%emt 0:01:46]} 27. Rf3 {[%emt 0:00:47]} Kh7 {[%emt 0:00:37]} 28. Raf1 {[%emt 0:01:03]} Rf8 {[%emt 0:00:10]} 29. Qf2 {[%emt 0:01:30]} Ne5 {[%emt 0:11:26]} 30. Nxe5 {[%emt 0:01:06]} Qxe5 {[%emt 0:00:16]} 31. Rxf7 {[%emt 0:01:38]} Bxh3 {[%emt 0:00:22]} 32. Qe2 {[%emt 0:10:09]} Bd7 {[%emt 0:01:31]} 33. Bg4 {[%emt 0:01:37]} Bb5 {[%emt 0:00:37]} 34. Nxb5 {[%emt 0:01:20]} axb5 {[%emt 0:00:04]} 35. Qxb5 {[%emt 0:02:35]} Qg5 {[%emt 0:00:02]} 36. Rxf8 {[%emt 0:04:31]} Rxf8 {[%emt 0:01:29]} 37. Rxf8 {[%emt 0:01:32]} Qh4+ {[%emt 0:00:52]} 38. Bh3 {[%emt 0:00:54]} Bxf8 {[%emt 0:00:13]} 39. Qxb7+ {[%emt 0:00:39]} Bg7 {[%emt 0:00:32]} 40. Qf7 {[%emt 0:00:00]} Qe1+ {[%emt 0:00:00]} 41. Kh2 {[%emt 0:00:51]} 1-0